[Event "Titled Tuesday Blitz March 08 Early 2022"]
[White "Krylov, Ivan"]
[Black "Quirke, Jeffrey"]
[WhiteFideId "24128066"]
[BlackFideId "2013029"]
[WhiteElo "2258"]
[BlackElo "2119"]
[Result "0-1"]
[Round "06"]
[TimeControl "180+1"]
[Date "2022.03.09"]
[WhiteClock "0:00:17"]
[BlackClock "0:00:11"]

1. e4 {[%clk 0:03:00]}  c5 {[%clk 0:02:55]} 2. Nf3 {[%clk 0:03:01]}  e6 {[%clk 0:02:53]} 3. c3 {[%clk 0:03:00]}  Nf6 {[%clk 0:02:52]} 4. e5 {[%clk 0:02:56]}  Nd5 {[%clk 0:02:52]} 5. d4 {[%clk 0:02:55]}  cxd4 {[%clk 0:02:53]} 6. cxd4 {[%clk 0:02:55]}  d6 {[%clk 0:02:53]} 7. Nc3 {[%clk 0:02:45]}  Nxc3 {[%clk 0:02:52]} 8. bxc3 {[%clk 0:02:46]}  Qc7 {[%clk 0:02:51]} 9. Bd2 {[%clk 0:02:42]}  Nd7 {[%clk 0:02:51]} 10. Bb5 {[%clk 0:02:38]}  b6 {[%clk 0:02:48]} 11. O-O {[%clk 0:02:36]}  Bb7 {[%clk 0:02:47]} 12. Rc1 {[%clk 0:02:32]}  Be7 {[%clk 0:02:44]} 13. exd6 {[%clk 0:02:27]}  Bxd6 {[%clk 0:02:35]} 14. h3 {[%clk 0:02:14]}  O-O {[%clk 0:02:35]} 15. Ng5 {[%clk 0:02:09]}  h6 {[%clk 0:02:28]} 16. Nf3 {[%clk 0:02:05]}  Nf6 {[%clk 0:02:23]} 17. Bd3 {[%clk 0:02:02]}  Rac8 {[%clk 0:02:10]} 18. Re1 {[%clk 0:01:54]}  Rfd8 {[%clk 0:02:08]} 19. Bb1 {[%clk 0:01:48]}  Bf4 {[%clk 0:02:06]} 20. Bxf4 {[%clk 0:01:44]}  Qxf4 {[%clk 0:02:04]} 21. Ne5 {[%clk 0:01:40]}  Qg5 {[%clk 0:01:24]} 22. g3 {[%clk 0:01:30]}  h5 {[%clk 0:01:17]} 23. h4 {[%clk 0:01:23]}  Qh6 {[%clk 0:01:16]} 24. Qe2 {[%clk 0:01:11]}  Rxd4 {[%clk 0:00:59]} 25. Nxf7 {[%clk 0:00:58]}  Kxf7 {[%clk 0:00:41]} 26. Qxe6+ {[%clk 0:00:56]}  Kf8 {[%clk 0:00:41]} 27. Qe7+ {[%clk 0:00:55]}  Kg8 {[%clk 0:00:39]} 28. Qxb7 {[%clk 0:00:54]}  Rdc4 {[%clk 0:00:30]} 29. Bf5 {[%clk 0:00:38]}  R4c7 {[%clk 0:00:23]} 30. Qf3 {[%clk 0:00:27]}  Rf8 {[%clk 0:00:19]} 31. Qd3 {[%clk 0:00:19]}  Kh8 {[%clk 0:00:19]} 32. Bg6 {[%clk 0:00:16]}  Ng4 {[%clk 0:00:16]} 33. Re2 {[%clk 0:00:13]}  Rc6 {[%clk 0:00:13]} 34. Rce1 {[%clk 0:00:09]}  Rxg6 {[%clk 0:00:12]} 35. Qc2 {[%clk 0:00:05]}  Rgf6 {[%clk 0:00:12]} 36. Qb2 {[%clk 0:00:04]}  Nxf2 {[%clk 0:00:10]} 37. Rxf2 {[%clk 0:00:05]}  Rxf2 {[%clk 0:00:09]} 38. Qxf2 {[%clk 0:00:06]}  Rxf2 {[%clk 0:00:08]} 39. Re8+ {[%clk 0:00:05]}  Kh7 {[%clk 0:00:07]} 40. Kxf2 {[%clk 0:00:04]}  Qd2+ {[%clk 0:00:07]} 41. Kf3 {[%clk 0:00:04]}  Qxc3+ {[%clk 0:00:07]} 42. Re3 {[%clk 0:00:03]}  Qf6+ {[%clk 0:00:07]} 43. Ke2 {[%clk 0:00:04]}  Qb2+ {[%clk 0:00:06]} 44. Kf3 {[%clk 0:00:04]}  Qxa2 {[%clk 0:00:06]} 45. Rd3 {[%clk 0:00:03]}  Qc4 {[%clk 0:00:04]} 46. Re3 {[%clk 0:00:04]}  Qd5+ {[%clk 0:00:04]} 47. Re4 {[%clk 0:00:04]}  Qxe4+ {[%clk 0:00:03]} 48. Kxe4 {[%clk 0:00:05]}  b5 {[%clk 0:00:03]} 49. Kd4 {[%clk 0:00:06]}  a6 {[%clk 0:00:03]} 50. Kc5 {[%clk 0:00:06]}  Kg6 {[%clk 0:00:03]} 51. Kb6 {[%clk 0:00:06]}  b4 {[%clk 0:00:04]} 52. Kxa6 {[%clk 0:00:06]}  b3 {[%clk 0:00:05]} 53. Kb6 {[%clk 0:00:07]}  b2 {[%clk 0:00:05]} 54. Kc6 {[%clk 0:00:08]}  b1=Q {[%clk 0:00:06]} 55. Kd5 {[%clk 0:00:09]}  Qc2 {[%clk 0:00:06]} 56. Ke5 {[%clk 0:00:09]}  Qg2 {[%clk 0:00:06]} 57. Kf4 {[%clk 0:00:10]}  Qf2+ {[%clk 0:00:06]} 58. Ke4 {[%clk 0:00:11]}  Qxg3 {[%clk 0:00:07]} 59. Kd4 {[%clk 0:00:11]}  Qxh4+ {[%clk 0:00:08]} 60. Kd5 {[%clk 0:00:12]}  Qg4 {[%clk 0:00:08]} 61. Kc5 {[%clk 0:00:12]}  h4 {[%clk 0:00:09]} 62. Kb5 {[%clk 0:00:13]}  h3 {[%clk 0:00:10]} 63. Kc5 {[%clk 0:00:14]}  h2 {[%clk 0:00:10]} 64. Kb5 {[%clk 0:00:14]}  h1=Q {[%clk 0:00:10]} 65. Kc5 {[%clk 0:00:15]}  Qhf3 {[%clk 0:00:10]} 66. Kb5 {[%clk 0:00:15]}  Qff5+ {[%clk 0:00:10]} 67. Kb6 {[%clk 0:00:16]}  Qb4+ {[%clk 0:00:10]} 68. Kc6 {[%clk 0:00:17]}  Qf6+ {[%clk 0:00:10]} 69. Kd7 {[%clk 0:00:18]}  Qbd6+ {[%clk 0:00:09]} 70. Kc8 {[%clk 0:00:18]}  Qff8+ {[%clk 0:00:09]} 71. Kb7 {[%clk 0:00:17]}  Qfe7+ {[%clk 0:00:10]} 72. Kc8 {[%clk 0:00:17]}  Qdd8# {[%clk 0:00:11]} 0-1


[Site "https://www.chess.com"]

[Event "Titled Tuesday Blitz March 08 Early 2022"]
[White "Kuderinov, Kirill"]
[Black "Iskusnyh, Sergei"]
[WhiteFideId "13701568"]
[BlackFideId "4120027"]
[WhiteElo "2432"]
[BlackElo "2492"]
[Result "1-0"]
[Round "06"]
[TimeControl "180+1"]
[Date "2022.03.09"]
[WhiteClock "0:00:17"]
[BlackClock "0:00:01"]

1. e4 {[%clk 0:03:00]}  e6 {[%clk 0:02:58]} 2. d4 {[%clk 0:03:00]}  d5 {[%clk 0:02:58]} 3. Nc3 {[%clk 0:03:00]}  Nf6 {[%clk 0:02:57]} 4. e5 {[%clk 0:02:59]}  Nfd7 {[%clk 0:02:57]} 5. f4 {[%clk 0:03:00]}  c5 {[%clk 0:02:57]} 6. Nf3 {[%clk 0:03:01]}  Nc6 {[%clk 0:02:57]} 7. Be3 {[%clk 0:03:01]}  Rb8 {[%clk 0:02:57]} 8. Qd2 {[%clk 0:02:57]}  Qa5 {[%clk 0:02:56]} 9. Be2 {[%clk 0:02:52]}  b5 {[%clk 0:02:56]} 10. O-O {[%clk 0:02:50]}  b4 {[%clk 0:02:55]} 11. Nd1 {[%clk 0:02:50]}  Ba6 {[%clk 0:02:36]} 12. Nf2 {[%clk 0:02:27]}  cxd4 {[%clk 0:02:23]} 13. Nxd4 {[%clk 0:02:26]}  Nxd4 {[%clk 0:02:22]} 14. Bxd4 {[%clk 0:02:27]}  Bxe2 {[%clk 0:02:22]} 15. Qxe2 {[%clk 0:02:26]}  Bc5 {[%clk 0:02:22]} 16. Bxc5 {[%clk 0:02:02]}  Qxc5 {[%clk 0:02:17]} 17. Kh1 {[%clk 0:02:01]}  O-O {[%clk 0:02:16]} 18. Nd3 {[%clk 0:01:57]}  Qc4 {[%clk 0:02:02]} 19. f5 {[%clk 0:01:47]}  exf5 {[%clk 0:02:01]} 20. e6 {[%clk 0:01:47]}  Qe4 {[%clk 0:01:43]} 21. exf7+ {[%clk 0:01:21]}  Rxf7 {[%clk 0:01:40]} 22. Qf2 {[%clk 0:01:21]}  d4 {[%clk 0:01:24]} 23. Rae1 {[%clk 0:01:20]}  Qd5 {[%clk 0:01:24]} 24. Nf4 {[%clk 0:01:17]}  Qxa2 {[%clk 0:01:05]} 25. Qxd4 {[%clk 0:01:16]}  Nf6 {[%clk 0:01:02]} 26. Ne6 {[%clk 0:00:45]}  Ne4 {[%clk 0:00:57]} 27. Nd8 {[%clk 0:00:30]}  Rf6 {[%clk 0:00:47]} 28. Ra1 {[%clk 0:00:21]}  Rd6 {[%clk 0:00:16]} 29. Qxd6 {[%clk 0:00:20]}  Nxd6 {[%clk 0:00:13]} 30. Rxa2 {[%clk 0:00:21]}  Rxd8 {[%clk 0:00:14]} 31. Rd1 {[%clk 0:00:20]}  Re8 {[%clk 0:00:14]} 32. Rxa7 {[%clk 0:00:20]}  Ne4 {[%clk 0:00:14]} 33. Kg1 {[%clk 0:00:20]}  h6 {[%clk 0:00:12]} 34. Rdd7 {[%clk 0:00:20]}  Ng5 {[%clk 0:00:10]} 35. Rxg7+ {[%clk 0:00:20]}  Kh8 {[%clk 0:00:11]} 36. Rge7 {[%clk 0:00:20]}  Rd8 {[%clk 0:00:10]} 37. Rad7 {[%clk 0:00:19]}  Rc8 {[%clk 0:00:10]} 38. h4 {[%clk 0:00:19]}  Ne4 {[%clk 0:00:08]} 39. Rc7 {[%clk 0:00:19]}  Rd8 {[%clk 0:00:07]} 40. Re5 {[%clk 0:00:19]}  Ng3 {[%clk 0:00:05]} 41. Kh2 {[%clk 0:00:18]}  Nf1+ {[%clk 0:00:03]} 42. Kh3 {[%clk 0:00:19]}  f4 {[%clk 0:00:01]} 43. Rf5 {[%clk 0:00:17]} 1-0


[Site "https://www.chess.com"]

[Event "Titled Tuesday Blitz March 08 Early 2022"]
[White "Levin, Anthony"]
[Black "Rosenberg, Evan S"]
[WhiteFideId "30940680"]
[BlackFideId "2019299"]
[WhiteElo "1868"]
[BlackElo "2258"]
[Result "0-1"]
[Round "06"]
[TimeControl "180+1"]
[Date "2022.03.09"]
[WhiteClock "0:00:01"]
[BlackClock "0:00:11"]

1. d4 {[%clk 0:02:49]}  Nf6 {[%clk 0:02:58]} 2. c4 {[%clk 0:02:48]}  e6 {[%clk 0:02:58]} 3. g3 {[%clk 0:02:45]}  Bb4+ {[%clk 0:02:52]} 4. Bd2 {[%clk 0:02:45]}  a5 {[%clk 0:02:47]} 5. Bg2 {[%clk 0:02:42]}  c5 {[%clk 0:02:46]} 6. d5 {[%clk 0:02:36]}  exd5 {[%clk 0:02:32]} 7. cxd5 {[%clk 0:02:37]}  d6 {[%clk 0:02:30]} 8. Nc3 {[%clk 0:02:35]}  O-O {[%clk 0:02:28]} 9. Nf3 {[%clk 0:02:31]}  Re8 {[%clk 0:02:24]} 10. O-O {[%clk 0:02:30]}  Bxc3 {[%clk 0:02:21]} 11. Bxc3 {[%clk 0:02:30]}  b5 {[%clk 0:02:22]} 12. b3 {[%clk 0:02:17]}  Bb7 {[%clk 0:02:08]} 13. Nh4 {[%clk 0:02:15]}  g6 {[%clk 0:01:49]} 14. Qd3 {[%clk 0:01:37]}  Nbd7 {[%clk 0:01:38]} 15. f4 {[%clk 0:01:29]}  Qb6 {[%clk 0:01:21]} 16. Kh1 {[%clk 0:01:23]}  c4 {[%clk 0:01:16]} 17. bxc4 {[%clk 0:00:52]}  bxc4 {[%clk 0:01:16]} 18. Qxc4 {[%clk 0:00:50]}  Rac8 {[%clk 0:01:15]} 19. Qd3 {[%clk 0:00:41]}  Rxc3 {[%clk 0:01:14]} 20. Qxc3 {[%clk 0:00:40]}  Bxd5 {[%clk 0:00:44]} 21. Rab1 {[%clk 0:00:39]}  Bxg2+ {[%clk 0:00:39]} 22. Kxg2 {[%clk 0:00:40]}  Rxe2+ {[%clk 0:00:33]} 23. Kh1 {[%clk 0:00:32]}  Qa6 {[%clk 0:00:22]} 24. Nf3 {[%clk 0:00:20]}  Ne4 {[%clk 0:00:17]} 25. Qb3 {[%clk 0:00:11]}  Ndc5 {[%clk 0:00:15]} 26. Qb8+ {[%clk 0:00:08]}  Kg7 {[%clk 0:00:16]} 27. Rb2 {[%clk 0:00:05]}  Qd3 {[%clk 0:00:14]} 28. Rxe2 {[%clk 0:00:04]}  Qxe2 {[%clk 0:00:14]} 29. Kg1 {[%clk 0:00:03]}  Qe3+ {[%clk 0:00:13]} 30. Kg2 {[%clk 0:00:02]}  Nd3 {[%clk 0:00:11]} 31. Qb1 {[%clk 0:00:01]}  Qe2+ {[%clk 0:00:11]} 0-1


[Site "https://www.chess.com"]

[Event "Titled Tuesday Blitz March 08 Early 2022"]
[White "Levine, David"]
[Black "Vifleemskaia, Svetlana"]
[WhiteFideId "2011611"]
[BlackFideId "4129490"]
[WhiteElo "2179"]
[BlackElo "1901"]
[Result "0-1"]
[Round "06"]
[TimeControl "180+1"]
[Date "2022.03.09"]
[WhiteClock "0:00:01"]
[BlackClock "0:00:04"]

1. d4 {[%clk 0:03:00]}  Nf6 {[%clk 0:02:56]} 2. c4 {[%clk 0:03:00]}  e6 {[%clk 0:02:56]} 3. g3 {[%clk 0:03:00]}  Bb4+ {[%clk 0:02:56]} 4. Bd2 {[%clk 0:02:59]}  Qe7 {[%clk 0:02:57]} 5. Bg2 {[%clk 0:02:57]}  Nc6 {[%clk 0:02:58]} 6. Nf3 {[%clk 0:02:57]}  O-O {[%clk 0:02:58]} 7. O-O {[%clk 0:02:57]}  Bxd2 {[%clk 0:02:57]} 8. Qxd2 {[%clk 0:02:53]}  Ne4 {[%clk 0:02:56]} 9. Qc2 {[%clk 0:02:51]}  f5 {[%clk 0:02:56]} 10. Nc3 {[%clk 0:02:50]}  Nxc3 {[%clk 0:02:44]} 11. Qxc3 {[%clk 0:02:50]}  a5 {[%clk 0:02:40]} 12. d5 {[%clk 0:02:40]}  Nb8 {[%clk 0:02:29]} 13. dxe6 {[%clk 0:02:19]}  dxe6 {[%clk 0:02:27]} 14. Ne5 {[%clk 0:02:17]}  Nd7 {[%clk 0:02:20]} 15. Nxd7 {[%clk 0:02:16]}  Qxd7 {[%clk 0:02:18]} 16. Rad1 {[%clk 0:02:16]}  Qe7 {[%clk 0:02:17]} 17. Qe5 {[%clk 0:02:14]}  Ra6 {[%clk 0:02:10]} 18. Rd3 {[%clk 0:02:08]}  a4 {[%clk 0:01:50]} 19. Rfd1 {[%clk 0:02:08]}  a3 {[%clk 0:01:48]} 20. b3 {[%clk 0:02:05]}  b6 {[%clk 0:01:33]} 21. Bc6 {[%clk 0:01:55]}  Ra5 {[%clk 0:01:11]} 22. Qc3 {[%clk 0:01:25]}  Rc5 {[%clk 0:01:04]} 23. Bb5 {[%clk 0:01:10]}  f4 {[%clk 0:00:54]} 24. b4 {[%clk 0:01:09]}  Rh5 {[%clk 0:00:50]} 25. Bc6 {[%clk 0:01:01]}  fxg3 {[%clk 0:00:42]} 26. hxg3 {[%clk 0:00:58]}  Qg5 {[%clk 0:00:29]} 27. Bg2 {[%clk 0:00:42]}  Rh6 {[%clk 0:00:22]} 28. f4 {[%clk 0:00:30]}  Qh5 {[%clk 0:00:16]} 29. Rd8 {[%clk 0:00:27]}  Rf6 {[%clk 0:00:16]} 30. Rxf8+ {[%clk 0:00:26]}  Rxf8 {[%clk 0:00:16]} 31. Kf2 {[%clk 0:00:24]}  e5 {[%clk 0:00:14]} 32. Rh1 {[%clk 0:00:15]}  Qf5 {[%clk 0:00:09]} 33. e3 {[%clk 0:00:12]}  exf4 {[%clk 0:00:08]} 34. gxf4 {[%clk 0:00:11]}  Rd8 {[%clk 0:00:06]} 35. Bf3 {[%clk 0:00:05]}  Qf6 {[%clk 0:00:05]} 36. Qxf6 {[%clk 0:00:04]}  gxf6 {[%clk 0:00:06]} 37. Ke2 {[%clk 0:00:03]}  Kf7 {[%clk 0:00:05]} 38. Rc1 {[%clk 0:00:02]}  Be6 {[%clk 0:00:05]} 39. Rc3 {[%clk 0:00:02]}  Rd7 {[%clk 0:00:04]} 40. e4 {[%clk 0:00:02]}  f5 {[%clk 0:00:04]} 41. e5 {[%clk 0:00:01]}  Rd8 {[%clk 0:00:04]} 0-1


[Site "https://www.chess.com"]

[Event "Titled Tuesday Blitz March 08 Early 2022"]
[White "Lewtak, Damian"]
[Black "Bulmaga, Irina"]
[WhiteFideId "1141724"]
[BlackFideId "13903063"]
[WhiteElo "2362"]
[BlackElo "2184"]
[Result "0-1"]
[Round "06"]
[TimeControl "180+1"]
[Date "2022.03.09"]
[WhiteClock "0:00:03"]
[BlackClock "0:00:18"]

1. a3 {[%clk 0:03:00]}  d5 {[%clk 0:02:58]} 2. d4 {[%clk 0:03:00]}  Nf6 {[%clk 0:02:56]} 3. Nf3 {[%clk 0:03:00]}  b6 {[%clk 0:02:55]} 4. Bf4 {[%clk 0:02:58]}  Bb7 {[%clk 0:02:55]} 5. e3 {[%clk 0:02:58]}  e6 {[%clk 0:02:53]} 6. c4 {[%clk 0:02:58]}  Nbd7 {[%clk 0:02:50]} 7. Bd3 {[%clk 0:02:56]}  Be7 {[%clk 0:02:47]} 8. O-O {[%clk 0:02:56]}  dxc4 {[%clk 0:02:46]} 9. Bxc4 {[%clk 0:02:56]}  O-O {[%clk 0:02:47]} 10. Nbd2 {[%clk 0:02:55]}  c5 {[%clk 0:02:46]} 11. dxc5 {[%clk 0:02:53]}  Nxc5 {[%clk 0:02:43]} 12. Qe2 {[%clk 0:02:53]}  Nh5 {[%clk 0:02:37]} 13. Be5 {[%clk 0:02:49]}  Bf6 {[%clk 0:02:25]} 14. Rfd1 {[%clk 0:02:40]}  Bxe5 {[%clk 0:02:13]} 15. Nxe5 {[%clk 0:02:39]}  Nf6 {[%clk 0:01:53]} 16. Ne4 {[%clk 0:02:15]}  Qe7 {[%clk 0:01:52]} 17. Ng3 {[%clk 0:01:45]}  Ncd7 {[%clk 0:01:46]} 18. Nxd7 {[%clk 0:01:43]}  Nxd7 {[%clk 0:01:47]} 19. Rac1 {[%clk 0:01:39]}  Nf6 {[%clk 0:01:43]} 20. Bd3 {[%clk 0:01:34]}  h6 {[%clk 0:01:41]} 21. Nh5 {[%clk 0:01:30]}  Rac8 {[%clk 0:01:37]} 22. Bb1 {[%clk 0:01:22]}  Bd5 {[%clk 0:01:32]} 23. Qd3 {[%clk 0:01:17]}  g6 {[%clk 0:01:31]} 24. Nf4 {[%clk 0:01:06]}  Be4 {[%clk 0:01:31]} 25. Qe2 {[%clk 0:01:05]}  Bxb1 {[%clk 0:01:29]} 26. Rxb1 {[%clk 0:01:06]}  g5 {[%clk 0:01:25]} 27. Nd3 {[%clk 0:01:03]}  Rfd8 {[%clk 0:01:21]} 28. h3 {[%clk 0:00:59]}  Kg7 {[%clk 0:01:21]} 29. Ne5 {[%clk 0:00:58]}  Rd5 {[%clk 0:01:17]} 30. Rxd5 {[%clk 0:00:56]}  Nxd5 {[%clk 0:01:15]} 31. Qd3 {[%clk 0:00:55]}  Qc5 {[%clk 0:01:13]} 32. Rd1 {[%clk 0:00:44]}  Qc2 {[%clk 0:01:13]} 33. Qd4 {[%clk 0:00:44]}  f6 {[%clk 0:01:09]} 34. Nf3 {[%clk 0:00:24]}  Rc4 {[%clk 0:01:09]} 35. Qd3 {[%clk 0:00:24]}  Qxd3 {[%clk 0:01:08]} 36. Rxd3 {[%clk 0:00:24]}  f5 {[%clk 0:00:51]} 37. Kf1 {[%clk 0:00:23]}  Kf6 {[%clk 0:00:50]} 38. Ke2 {[%clk 0:00:20]}  a5 {[%clk 0:00:50]} 39. Rd4 {[%clk 0:00:20]}  Rc6 {[%clk 0:00:48]} 40. Rd2 {[%clk 0:00:20]}  Rc1 {[%clk 0:00:46]} 41. Nd4 {[%clk 0:00:20]}  Rg1 {[%clk 0:00:45]} 42. Kf3 {[%clk 0:00:17]}  h5 {[%clk 0:00:38]} 43. g3 {[%clk 0:00:17]}  g4+ {[%clk 0:00:37]} 44. hxg4 {[%clk 0:00:18]}  fxg4+ {[%clk 0:00:37]} 45. Ke2 {[%clk 0:00:18]}  Rc1 {[%clk 0:00:29]} 46. Nb5 {[%clk 0:00:18]}  Ke5 {[%clk 0:00:26]} 47. Nd4 {[%clk 0:00:17]}  Nf6 {[%clk 0:00:25]} 48. Nb5 {[%clk 0:00:17]}  Ne4 {[%clk 0:00:25]} 49. Rd8 {[%clk 0:00:11]}  Rc2+ {[%clk 0:00:26]} 50. Ke1 {[%clk 0:00:11]}  Rxb2 {[%clk 0:00:25]} 51. Nd4 {[%clk 0:00:12]}  Nxf2 {[%clk 0:00:23]} 52. Rf8 {[%clk 0:00:08]}  Ne4 {[%clk 0:00:20]} 53. Rd8 {[%clk 0:00:06]}  Nxg3 {[%clk 0:00:20]} 54. Nc6+ {[%clk 0:00:06]}  Kf6 {[%clk 0:00:20]} 55. Rf8+ {[%clk 0:00:06]}  Kg7 {[%clk 0:00:20]} 56. Rf4 {[%clk 0:00:05]}  Nf5 {[%clk 0:00:18]} 57. Nd8 {[%clk 0:00:03]}  Kf6 {[%clk 0:00:18]} 58. e4 {[%clk 0:00:03]}  Ke5 {[%clk 0:00:18]} 59. Rf1 {[%clk 0:00:03]}  Rb1+ {[%clk 0:00:18]} 0-1


[Site "https://www.chess.com"]

[Event "Titled Tuesday Blitz March 08 Early 2022"]
[White "Lima, Kleyton Alcantara"]
[Black "Madaminov, Mukhiddin"]
[WhiteFideId "22718397"]
[BlackFideId "14210703"]
[WhiteElo "1951"]
[BlackElo "1916"]
[Result "0-1"]
[Round "06"]
[TimeControl "180+1"]
[Date "2022.03.09"]
[WhiteClock "0:00:02"]
[BlackClock "0:00:12"]

1. e4 {[%clk 0:03:00]}  e6 {[%clk 0:02:59]} 2. d4 {[%clk 0:02:59]}  d5 {[%clk 0:03:00]} 3. Nc3 {[%clk 0:03:00]}  Nf6 {[%clk 0:03:00]} 4. e5 {[%clk 0:03:00]}  Nfd7 {[%clk 0:03:01]} 5. f4 {[%clk 0:03:01]}  c5 {[%clk 0:03:01]} 6. Nf3 {[%clk 0:03:01]}  Nc6 {[%clk 0:03:02]} 7. Be3 {[%clk 0:03:02]}  Qb6 {[%clk 0:03:03]} 8. Na4 {[%clk 0:02:58]}  Qa5+ {[%clk 0:03:03]} 9. c3 {[%clk 0:02:58]}  b6 {[%clk 0:03:04]} 10. Bd2 {[%clk 0:02:55]}  c4 {[%clk 0:03:03]} 11. b4 {[%clk 0:02:50]}  Nxb4 {[%clk 0:03:03]} 12. cxb4 {[%clk 0:02:50]}  Bxb4 {[%clk 0:03:04]} 13. Rb1 {[%clk 0:02:17]}  Bxd2+ {[%clk 0:02:48]} 14. Nxd2 {[%clk 0:02:18]}  c3 {[%clk 0:02:48]} 15. Nxc3 {[%clk 0:02:12]}  Qxc3 {[%clk 0:02:48]} 16. Qa4 {[%clk 0:02:05]}  Qe3+ {[%clk 0:02:33]} 17. Be2 {[%clk 0:02:03]}  Qxf4 {[%clk 0:02:30]} 18. Rf1 {[%clk 0:02:03]}  Qxh2 {[%clk 0:02:27]} 19. Bb5 {[%clk 0:02:04]}  Qh4+ {[%clk 0:01:17]} 20. Kd1 {[%clk 0:02:00]}  Qd8 {[%clk 0:01:17]} 21. Bc6 {[%clk 0:01:57]}  Rb8 {[%clk 0:01:17]} 22. Nf3 {[%clk 0:01:38]}  O-O {[%clk 0:01:14]} 23. Qxa7 {[%clk 0:01:36]}  Bb7 {[%clk 0:01:07]} 24. Bxb7 {[%clk 0:01:33]}  Qc7 {[%clk 0:01:06]} 25. Qa6 {[%clk 0:01:27]}  Qxb7 {[%clk 0:01:02]} 26. Qd3 {[%clk 0:01:27]}  h6 {[%clk 0:00:55]} 27. g4 {[%clk 0:01:24]}  f6 {[%clk 0:00:47]} 28. exf6 {[%clk 0:01:23]}  Nxf6 {[%clk 0:00:45]} 29. g5 {[%clk 0:01:23]}  hxg5 {[%clk 0:00:41]} 30. Nxg5 {[%clk 0:01:23]}  Ne4 {[%clk 0:00:19]} 31. Nxe4 {[%clk 0:00:22]}  dxe4 {[%clk 0:00:20]} 32. Qc4 {[%clk 0:00:23]}  Rxf1+ {[%clk 0:00:17]} 33. Qxf1 {[%clk 0:00:23]}  Qd5 {[%clk 0:00:18]} 34. Qf2 {[%clk 0:00:21]}  e5 {[%clk 0:00:18]} 35. Rb4 {[%clk 0:00:19]}  Ra8 {[%clk 0:00:17]} 36. Rxb6 {[%clk 0:00:19]}  exd4 {[%clk 0:00:14]} 37. Rb2 {[%clk 0:00:11]}  e3 {[%clk 0:00:13]} 38. Qe2 {[%clk 0:00:08]}  Rc8 {[%clk 0:00:12]} 39. Qg4 {[%clk 0:00:02]}  Qc4 {[%clk 0:00:12]} 0-1


[Site "https://www.chess.com"]

[Event "Titled Tuesday Blitz March 08 Early 2022"]
[White "Matinian, Nikita"]
[Black "Silva, Miguel Antonio Neto"]
[WhiteFideId "24129100"]
[BlackFideId "1911929"]
[WhiteElo "2422"]
[BlackElo "2204"]
[Result "1-0"]
[Round "06"]
[TimeControl "180+1"]
[Date "2022.03.09"]
[WhiteClock "0:01:18"]
[BlackClock "0:01:14"]

1. e4 {[%clk 0:03:00]}  e5 {[%clk 0:02:57]} 2. Bc4 {[%clk 0:02:59]}  Nf6 {[%clk 0:02:55]} 3. d3 {[%clk 0:03:00]}  Nc6 {[%clk 0:02:52]} 4. Nc3 {[%clk 0:02:59]}  Na5 {[%clk 0:02:50]} 5. Qf3 {[%clk 0:02:59]}  Be7 {[%clk 0:02:47]} 6. Nge2 {[%clk 0:02:59]}  d6 {[%clk 0:02:40]} 7. h3 {[%clk 0:02:58]}  a6 {[%clk 0:02:38]} 8. g4 {[%clk 0:02:58]}  Nxc4 {[%clk 0:02:34]} 9. dxc4 {[%clk 0:02:59]}  Be6 {[%clk 0:02:31]} 10. b3 {[%clk 0:02:59]}  b5 {[%clk 0:02:26]} 11. cxb5 {[%clk 0:02:56]}  axb5 {[%clk 0:02:24]} 12. g5 {[%clk 0:02:50]}  Nd7 {[%clk 0:02:21]} 13. Nxb5 {[%clk 0:02:47]}  O-O {[%clk 0:02:21]} 14. Rg1 {[%clk 0:02:41]}  c6 {[%clk 0:02:16]} 15. Nbc3 {[%clk 0:02:39]}  Kh8 {[%clk 0:02:04]} 16. Be3 {[%clk 0:02:35]}  Qa5 {[%clk 0:02:02]} 17. Kf1 {[%clk 0:02:31]}  d5 {[%clk 0:01:59]} 18. Bd2 {[%clk 0:02:19]}  d4 {[%clk 0:01:45]} 19. Nb1 {[%clk 0:02:14]}  Qa6 {[%clk 0:01:44]} 20. a4 {[%clk 0:02:07]}  c5 {[%clk 0:01:42]} 21. Na3 {[%clk 0:02:06]}  c4 {[%clk 0:01:40]} 22. Nxc4 {[%clk 0:02:06]}  Bxc4 {[%clk 0:01:40]} 23. bxc4 {[%clk 0:02:07]}  Qxc4 {[%clk 0:01:40]} 24. Kg2 {[%clk 0:01:35]}  Rxa4 {[%clk 0:01:34]} 25. Rxa4 {[%clk 0:01:26]}  Qxa4 {[%clk 0:01:35]} 26. Rc1 {[%clk 0:01:26]}  Qc4 {[%clk 0:01:32]} 27. Ng3 {[%clk 0:01:23]}  Kg8 {[%clk 0:01:23]} 28. Nf5 {[%clk 0:01:22]}  Ba3 {[%clk 0:01:14]} 29. Qxa3 {[%clk 0:01:18]} 1-0


[Site "https://www.chess.com"]

[Event "Titled Tuesday Blitz March 08 Early 2022"]
[White "Matlakov, Maxim"]
[Black "Safarli, Eltaj"]
[WhiteFideId "4168003"]
[BlackFideId "13402129"]
[WhiteElo "2669"]
[BlackElo "2634"]
[Result "1-0"]
[Round "06"]
[TimeControl "180+1"]
[Date "2022.03.08"]
[WhiteClock "0:00:26"]
[BlackClock "0:00:05"]

1. e4 {[%clk 0:03:00]}  c6 {[%clk 0:02:56]} 2. d4 {[%clk 0:03:00]}  d5 {[%clk 0:02:56]} 3. exd5 {[%clk 0:03:00]}  cxd5 {[%clk 0:02:56]} 4. Bd3 {[%clk 0:03:00]}  Nc6 {[%clk 0:02:56]} 5. c3 {[%clk 0:03:00]}  Nf6 {[%clk 0:02:55]} 6. h3 {[%clk 0:03:00]}  g6 {[%clk 0:02:55]} 7. Nf3 {[%clk 0:02:59]}  Bg7 {[%clk 0:02:54]} 8. Qc2 {[%clk 0:02:59]}  O-O {[%clk 0:02:54]} 9. O-O {[%clk 0:02:59]}  Bd7 {[%clk 0:02:42]} 10. Bf4 {[%clk 0:02:56]}  Rc8 {[%clk 0:02:41]} 11. a3 {[%clk 0:02:28]}  Nh5 {[%clk 0:02:35]} 12. Be3 {[%clk 0:02:28]}  Qc7 {[%clk 0:02:26]} 13. Re1 {[%clk 0:02:06]}  Nf4 {[%clk 0:02:25]} 14. Bf1 {[%clk 0:02:00]}  Rce8 {[%clk 0:02:03]} 15. Qc1 {[%clk 0:01:50]}  Nh5 {[%clk 0:01:42]} 16. Nbd2 {[%clk 0:01:49]}  f6 {[%clk 0:01:38]} 17. c4 {[%clk 0:01:46]}  Be6 {[%clk 0:01:30]} 18. b4 {[%clk 0:01:43]}  a6 {[%clk 0:00:39]} 19. g4 {[%clk 0:01:40]}  f5 {[%clk 0:00:32]} 20. Ng5 {[%clk 0:01:24]}  Bc8 {[%clk 0:00:22]} 21. cxd5 {[%clk 0:00:53]}  f4 {[%clk 0:00:22]} 22. dxc6 {[%clk 0:00:53]}  fxe3 {[%clk 0:00:21]} 23. Rxe3 {[%clk 0:00:53]}  Nf4 {[%clk 0:00:11]} 24. cxb7 {[%clk 0:00:48]}  Qxb7 {[%clk 0:00:12]} 25. Qc4+ {[%clk 0:00:48]}  Kh8 {[%clk 0:00:08]} 26. Nf7+ {[%clk 0:00:40]}  Rxf7 {[%clk 0:00:08]} 27. Qxf7 {[%clk 0:00:41]}  Rf8 {[%clk 0:00:09]} 28. Qxe7 {[%clk 0:00:40]}  Qd5 {[%clk 0:00:04]} 29. Qe4 {[%clk 0:00:31]}  Qxd4 {[%clk 0:00:03]} 30. Qxd4 {[%clk 0:00:30]}  Bxd4 {[%clk 0:00:04]} 31. Rae1 {[%clk 0:00:30]}  Bxe3 {[%clk 0:00:04]} 32. fxe3 {[%clk 0:00:27]}  Rd8 {[%clk 0:00:05]} 33. exf4 {[%clk 0:00:26]} 1-0


[Site "https://www.chess.com"]